bitfinex-derivatives/quotes_BTCF0:USTF0_20250322
["timestamp","ask_amount","ask_price","bid_price","bid_amount"]
[1742634009522,8e-05,84280.0,84279.0,0.4629786]
[1742634009720,8e-05,84280.0,84279.0,0.5272786]
[1742634022440,8e-05,84280.0,84279.0,0.5575786]
[1742634022833,0.03068,84280.0,84279.0,0.5575786]
[1742634025534,0.03068,84280.0,84279.0,0.9183786]
[1742634029743,0.06178,84280.0,84279.0,0.9183786]
[1742634029942,0.1804772,84280.0,84279.0,0.9183786]
[1742634046646,0.1804772,84280.0,84279.0,0.5575786]
[1742634046846,0.1804772,84280.0,84279.0,0.9183786]
[1742634048656,0.1804772,84280.0,84279.0,0.5575786]
[1742634048852,0.06178,84280.0,84279.0,0.9183786]
[1742634050647,0.06178,84280.0,84279.0,0.5575786]
[1742634050848,0.06178,84280.0,84279.0,1.2791786]
[1742634056262,0.1804772,84280.0,84279.0,1.2791786]
[1742634056858,0.06178,84280.0,84279.0,1.2791786]
[1742634057057,0.1804772,84280.0,84279.0,1.2791786]
[1742634057860,0.06178,84280.0,84279.0,1.2791786]
[1742634060662,0.06178,84280.0,84279.0,1.49277795]
[1742634063760,0.1804772,84280.0,84279.0,1.2791786]
[1742634063964,0.06178,84280.0,84279.0,1.2791786]
[1742634065569,0.1804772,84280.0,84279.0,1.2791786]
[1742634065766,0.06178,84280.0,84279.0,1.2791786]
[1742634066570,0.1804772,84280.0,84279.0,1.2791786]
[1742634068772,0.29913001,84280.0,84279.0,0.95336]
[1742634068970,0.29913001,84280.0,84279.0,0.8358]
[1742634070975,0.29905001,84280.0,84279.0,0.8358]
[1742634071377,0.29905001,84280.0,84279.0,0.9544986]
[1742634074380,0.29905001,84280.0,84279.0,0.5936986]
[1742634075984,0.29905001,84280.0,84279.0,0.6236986]
[1742634076481,0.29905001,84280.0,84279.0,0.6540986]
[1742634087494,0.29905001,84280.0,84279.0,0.6540986]
[1742634089791,0.29905001,84280.0,84279.0,0.9140986]
[1742634099700,0.29905001,84280.0,84279.0,0.5532986]
[1742634107610,0.00017806,84287.0,84286.0,0.1186887]
[1742634107819,0.00017806,84287.0,84286.0,0.8236487]
[1742634111812,0.00017806,84287.0,84286.0,0.8868487]
[1742634114214,0.11886536,84287.0,84286.0,0.4812087]
[1742634114413,0.29870832,84287.0,84286.0,0.2328487]
[1742634116318,0.29870832,84287.0,84286.0,0.2658487]
[1742634116511,0.29870832,84287.0,84286.0,0.2982487]
[1742634139539,0.18002102,84287.0,84286.0,0.2982487]
[1742634139941,0.11882102,84287.0,84286.0,0.2982487]
[1742634140136,8e-05,84288.0,84287.0,0.1186873]
[1742634140341,8e-05,84288.0,84287.0,0.4344073]
[1742634140543,0.0303,84289.0,84288.0,0.1186859]
[1742634140836,0.0303,84289.0,84288.0,0.7312059]
[1742634141031,0.0303,84289.0,84288.0,0.7952059]
[1742634141436,0.03038,84289.0,84288.0,0.7952059]
[1742634141636,8e-05,84289.0,84288.0,0.7952059]
[1742634142544,0.0623,84291.0,84290.0,0.1186831]
[1742634142737,0.0623,84291.0,84290.0,0.3804431]
[1742634142938,0.0623,84291.0,84290.0,0.4461431]
[1742634142939,0.24097026,84291.0,84290.0,0.4461431]
[1742634144138,0.20907026,84291.0,84290.0,0.4461431]
[1742634145144,0.17867026,84291.0,84290.0,0.4461431]
[1742634145546,0.1496597,84293.0,84290.0,0.4461431]
[1742634145547,0.17851065,84292.0,84291.0,0.1186817]
[1742634145747,0.17851065,84292.0,84291.0,0.5028017]
[1742634145948,0.1496597,84293.0,84292.0,0.1186803]
[1742634146252,0.1496597,84293.0,84292.0,0.4471003]
[1742634146542,0.32784501,84293.0,84292.0,0.4471003]
[1742634148550,0.32776501,84293.0,84292.0,0.4471003]
[1742634151342,0.32776501,84293.0,84292.0,0.5284003]
[1742634151846,0.44639952,84293.0,84292.0,0.5284003]
[1742634175662,0.44639952,84293.0,84292.0,0.5609003]
[1742634189076,0.44987952,84293.0,84292.0,0.5609003]
[1742634202585,0.49478952,84293.0,84292.0,0.5609003]
[1742634203380,0.50750952,84293.0,84292.0,0.5609003]
[1742634203583,0.50750952,84293.0,84292.0,0.00172]
[1742634203783,0.1186803,84292.0,84291.0,0.11236]
[1742634204081,0.1186803,84292.0,84291.0,0.2327617]
[1742634204389,0.32814269,84292.0,84291.0,0.2327617]
[1742634204588,0.4467772,84292.0,84291.0,0.2934617]
[1742634208885,0.3280969,84292.0,84291.0,0.3534617]
[1742634209287,0.32814269,84292.0,84291.0,0.3534617]
[1742634209492,0.20946239,84292.0,84291.0,0.3534617]
[1742634210092,0.32814269,84292.0,84291.0,0.3534617]
[1742634215891,0.20946239,84292.0,84291.0,0.3534617]
[1742634216696,8e-05,84295.0,84291.0,0.2941204]
[1742634216902,8e-05,84295.0,84294.0,0.1186774]
[1742634217193,8e-05,84295.0,84294.0,0.4003974]
[1742634217590,0.1515682,84301.0,84296.0,0.1186746]
[1742634217787,0.1187492,84300.0,84296.0,0.3703946]
[1742634217992,0.04508763,84297.0,84296.0,0.3703946]
[1742634218199,0.04508763,84297.0,84296.0,0.4328946]
[1742634223598,8e-05,84303.0,84302.0,0.1186662]
[1742634223803,8e-05,84303.0,84302.0,0.8236262]
[1742634224194,8e-05,84303.0,84302.0,0.8554262]
[1742634224697,0.151762,84305.0,84304.0,0.1186634]
[1742634224905,0.151762,84305.0,84304.0,0.3703834]
[1742634225099,0.0331,84305.0,84304.0,0.3703834]
[1742634225305,0.0331,84305.0,84304.0,0.4021834]
[1742634226005,0.0656,84305.0,84304.0,0.4021834]
[1742634226200,0.184262,84305.0,84304.0,0.41129533]
[1742634229703,0.184262,84305.0,84304.0,0.42335511]
[1742634239805,0.184262,84305.0,84304.0,0.45355511]
[1742634241101,0.1186788,84293.0,84290.0,1.07551935]
[1742634241304,0.1186788,84293.0,84292.0,0.0012]
[1742634241610,0.29706053,84293.0,84292.0,0.0012]
[1742634241806,0.41687817,84293.0,84292.0,0.0012]
[1742634242204,0.48087817,84293.0,84292.0,0.0012]
[1742634242504,0.48087817,84293.0,84290.0,0.21359935]
[1742634242505,0.1186817,84291.0,84290.0,0.11379935]
[1742634242695,0.11928171,84291.0,84290.0,0.06473935]
[1742634242898,0.29613392,84291.0,84290.0,0.06473935]
[1742634243407,0.1186845,84289.0,84288.0,0.00017795]
[1742634243610,0.1193645,84289.0,84288.0,0.00077795]
[1742634243818,0.29824056,84289.0,84288.0,0.00145795]
[1742634244017,0.29824056,84289.0,84288.0,0.00017795]
[1742634244309,0.4168807,84289.0,84288.0,0.00017795]
[1742634246501,0.4813807,84289.0,84288.0,0.00017795]
[1742634249314,0.8421807,84289.0,84288.0,0.00017795]
[1742634255922,0.4813807,84289.0,84288.0,0.00017795]
[1742634256104,0.8421807,84289.0,84288.0,0.00085795]
[1742634256308,0.8421807,84289.0,84288.0,0.00017795]
[1742634257813,0.4813807,84289.0,84288.0,0.00017795]
[1742634258011,0.8421807,84289.0,84288.0,0.00077795]
[1742634258324,0.8421807,84289.0,84288.0,0.00017795]
[1742634259124,0.4813807,84289.0,84288.0,0.00017795]
[1742634259418,0.8421807,84289.0,84288.0,0.00081795]
[1742634259617,0.8421807,84289.0,84288.0,0.00017795]
[1742634261227,0.8421807,84289.0,84288.0,0.03137795]
[1742634264124,0.8097807,84289.0,84288.0,0.03137795]
[1742634264309,0.4168807,84289.0,84288.0,0.03137795]
[1742634264514,0.7776807,84289.0,84288.0,0.03197795]
[1742634264719,0.2981962,84289.0,84288.0,0.15066385]
[1742634265029,0.4168807,84289.0,84288.0,0.18126385]
[1742634267625,0.7776807,84289.0,84288.0,0.18126385]
[1742634270726,0.7776807,84289.0,84288.0,0.06257795]
[1742634271124,0.7776807,84289.0,84288.0,0.06197795]
[1742634271428,0.7776807,84289.0,84288.0,0.18066385]
[1742634271627,0.7776807,84289.0,84288.0,0.18126385]
[1742634272421,0.7776807,84289.0,84288.0,0.06257795]
[1742634272621,0.7776807,84289.0,84288.0,0.18126385]
[1742634274624,0.7776807,84289.0,84288.0,0.06257795]
[1742634274918,0.7776807,84289.0,84288.0,0.06197795]
[1742634275316,0.8431807,84289.0,84288.0,0.06197795]
[1742634277320,0.4823807,84289.0,84288.0,0.06197795]
[1742634277519,0.8431807,84289.0,84288.0,0.06197795]
[1742634280333,0.8431807,84289.0,84288.0,0.06257795]
[1742634280523,0.8431807,84289.0,84288.0,0.06197795]
[1742634290632,0.4823807,84289.0,84288.0,0.06197795]
[1742634290835,0.8431807,84289.0,84288.0,0.06257795]
[1742634291047,0.8431807,84289.0,84288.0,0.06197795]
[1742634291434,0.8431807,84289.0,84288.0,0.06265795]
[1742634291646,0.8431807,84289.0,84288.0,0.06197795]
[1742634292231,0.8431807,84289.0,84288.0,0.06261795]
[1742634294546,0.4823807,84289.0,84288.0,0.06261795]
[1742634294753,0.8431807,84289.0,84288.0,0.06261795]
[1742634296335,0.8109807,84289.0,84288.0,0.06261795]
[1742634296536,0.4501807,84289.0,84288.0,0.06261795]
[1742634296739,0.8109807,84289.0,84288.0,0.06261795]
[1742634297943,0.8109807,84289.0,84288.0,0.06197795]
[1742634298137,0.8109807,84289.0,84288.0,0.06257795]
[1742634299653,0.7776807,84289.0,84288.0,0.06257795]
[1742634300444,0.88527293,84289.0,84288.0,0.06257795]
[1742634300647,0.52447293,84289.0,84288.0,0.06257795]
[1742634300838,0.88527293,84289.0,84288.0,0.06257795]
[1742634301642,0.52447293,84289.0,84288.0,0.06197795]
[1742634301841,0.88527293,84289.0,84288.0,0.06257795]
[1742634302141,0.88527293,84289.0,84288.0,0.06197795]
[1742634303841,0.88527293,84289.0,84288.0,0.06257795]
[1742634304949,0.88527293,84289.0,84288.0,0.18126385]
[1742634307147,0.88527293,84289.0,84288.0,0.06257795]
[1742634307344,0.88527293,84289.0,84288.0,0.06197795]
[1742634307547,0.88527293,84289.0,84288.0,0.06257795]
[1742634307853,0.88527293,84289.0,84288.0,0.06197795]
[1742634308055,0.88527293,84289.0,84288.0,0.06257795]
[1742634308356,0.88527293,84289.0,84288.0,0.06197795]
[1742634308547,0.88527293,84289.0,84288.0,0.06257795]
[1742634308949,0.88527293,84289.0,84288.0,0.06197795]
[1742634309149,0.88527293,84289.0,84288.0,0.06261795]
[1742634309657,0.7776807,84289.0,84288.0,0.06197795]
[1742634309959,0.7776807,84289.0,84288.0,0.06257795]
[1742634310346,0.7776807,84289.0,84288.0,0.06197795]
[1742634310551,0.7776807,84289.0,84288.0,0.06257795]
[1742634311050,0.7776807,84289.0,84288.0,0.06197795]
[1742634311552,0.7776807,84289.0,84288.0,0.06261795]
[1742634313952,0.8083807,84289.0,84288.0,0.06197795]
[1742634314155,0.7776807,84289.0,84288.0,0.06257795]
[1742634316655,0.7776807,84289.0,84288.0,0.18126385]
[1742634320667,0.4168807,84289.0,84288.0,0.18126385]
[1742634320865,0.7776807,84289.0,84288.0,0.18126385]
[1742634321566,0.7776807,84289.0,84288.0,0.06257795]
[1742634321866,0.7776807,84289.0,84288.0,0.18126385]
[1742634322568,0.7776807,84289.0,84288.0,0.06257795]
[1742634323156,0.7776807,84289.0,84288.0,0.18126385]
[1742634323567,0.8091807,84289.0,84288.0,0.06257795]
[1742634323968,0.8091807,84289.0,84288.0,0.18126385]
[1742634324259,0.8091807,84289.0,84288.0,0.06257795]
[1742634324457,0.8091807,84289.0,84288.0,0.06197795]
[1742634325965,0.8091807,84289.0,84288.0,0.06257795]
[1742634326267,0.4483807,84289.0,84288.0,0.06257795]
[1742634326672,0.8091807,84289.0,84288.0,0.06257795]
[1742634329273,0.4483807,84289.0,84288.0,0.06257795]
[1742634329474,0.8091807,84289.0,84288.0,0.06257795]
[1742634329769,0.4483807,84289.0,84288.0,0.06257795]
[1742634329971,0.8091807,84289.0,84288.0,0.18126385]
[1742634330170,0.7776807,84289.0,84288.0,0.18126385]
[1742634330872,0.7776807,84289.0,84288.0,0.06257795]
[1742634331668,0.4168807,84289.0,84288.0,0.06197795]
[1742634331876,0.7776807,84289.0,84288.0,0.06257795]
[1742634332064,0.7776807,84289.0,84288.0,0.06197795]
[1742634332265,0.7776807,84289.0,84288.0,0.06261795]
[1742634332465,0.7776807,84289.0,84288.0,0.18130385]
[1742634332665,0.7776807,84289.0,84288.0,0.06261795]
[1742634335080,0.7776807,84289.0,84288.0,0.18130385]
[1742634335376,0.7776807,84289.0,84288.0,0.06261795]
[1742634336877,0.7776807,84289.0,84288.0,0.18130385]
[1742634337279,0.7776807,84289.0,84288.0,0.06261795]
[1742634337577,0.7776807,84289.0,84288.0,0.18130385]
[1742634338282,0.7776807,84289.0,84288.0,0.06261795]
[1742634338488,0.7776807,84289.0,84288.0,0.06197795]
[1742634338781,0.7776807,84289.0,84288.0,0.06257795]
[1742634338981,0.7776807,84289.0,84288.0,0.18126385]
[1742634341076,0.7776807,84289.0,84288.0,0.06257795]
[1742634341277,0.7776807,84289.0,84288.0,0.18126385]
[1742634341882,0.7776807,84289.0,84288.0,0.06257795]
[1742634343485,0.8098807,84289.0,84288.0,0.06257795]
[1742634344174,0.4490807,84289.0,84288.0,0.06257795]
[1742634344485,0.8098807,84289.0,84288.0,0.18126385]
[1742634346785,0.8098807,84289.0,84288.0,0.06257795]
[1742634347284,0.8098807,84289.0,84288.0,0.18126385]
[1742634348391,0.8098807,84289.0,84288.0,0.06257795]
[1742634349787,0.8098807,84289.0,84288.0,0.18126385]
[1742634350483,0.8098807,84289.0,84288.0,0.06257795]
[1742634350873,0.8413807,84289.0,84288.0,0.06197795]
[1742634351875,0.8413807,84289.0,84288.0,0.06265795]
[1742634353685,0.4805807,84289.0,84288.0,0.06265795]
[1742634353889,0.8413807,84289.0,84288.0,0.06265795]
[1742634358300,0.8098807,84289.0,84288.0,0.18134385]
[1742634358901,0.7776807,84289.0,84288.0,0.18134385]
[1742634359094,0.7776807,84289.0,84288.0,0.06265795]
[1742634359902,0.7776807,84289.0,84288.0,0.18134385]
[1742634361697,0.7776807,84289.0,84288.0,0.06265795]
[1742634366504,0.7776807,84289.0,84288.0,0.18134385]
[1742634368110,0.7776807,84289.0,84288.0,0.06265795]
[1742634368906,0.7776807,84289.0,84288.0,0.18134385]
[1742634369108,0.7776807,84289.0,84288.0,0.06265795]
[1742634369699,0.7776807,84289.0,84288.0,0.18134385]
[1742634370106,0.4168807,84289.0,84288.0,0.18134385]
[1742634396220,0.4470807,84289.0,84288.0,0.18134385]
[1742634397133,0.4785807,84289.0,84288.0,0.18134385]
[1742634402534,0.4785807,84289.0,84288.0,0.06265795]
[1742634403634,0.4785807,84289.0,84288.0,0.18134385]
[1742634404030,0.4785807,84289.0,84288.0,0.06265795]
[1742634404232,0.5117807,84289.0,84288.0,0.06197795]
[1742634404430,0.5117807,84289.0,84288.0,0.06257795]
[1742634404934,0.5117807,84289.0,84288.0,0.06197795]
[1742634405739,0.5117807,84289.0,84288.0,0.06257795]
[1742634405945,0.8725807,84289.0,84288.0,0.06257795]
[1742634412236,0.8725807,84289.0,84288.0,0.06197795]
[1742634412542,0.8725807,84289.0,84288.0,0.06257795]
[1742634413641,0.5117807,84289.0,84288.0,0.06257795]
[1742634413835,0.8725807,84289.0,84288.0,0.06257795]
[1742634414040,0.8725807,84289.0,84288.0,0.06197795]
[1742634415534,0.8725807,84289.0,84288.0,0.06257795]
[1742634416348,0.8725807,84289.0,84288.0,0.06197795]
[1742634416938,0.8725807,84289.0,84288.0,0.06257795]
[1742634417646,0.8393807,84289.0,84288.0,0.06197795]
[1742634418151,0.8393807,84289.0,84288.0,0.06261795]
[1742634418451,0.4785807,84289.0,84288.0,0.18130385]
[1742634418751,0.4168807,84289.0,84288.0,0.18130385]
[1742634419050,0.7776807,84289.0,84288.0,0.18130385]
[1742634420740,0.4168807,84289.0,84288.0,0.18130385]
[1742634421354,0.4168807,84289.0,84288.0,0.19655668]
[1742634422762,0.7776807,84289.0,84288.0,0.19655668]
[1742634423260,0.7776807,84289.0,84288.0,0.18130385]
[1742634424055,0.4168807,84289.0,84288.0,0.18130385]
[1742634424471,0.4168807,84289.0,84288.0,0.19668382]
[1742634431062,0.4168807,84289.0,84288.0,0.07799792]
[1742634431461,0.4168807,84289.0,84288.0,0.19668382]
[1742634433772,0.4168807,84289.0,84288.0,0.18130385]
[1742634445183,0.2981962,84289.0,84288.0,0.18130385]
[1742634445583,0.4168807,84289.0,84288.0,0.18130385]
[1742634449387,0.17955606,84289.0,84288.0,0.18130385]
[1742634449588,0.17887606,84289.0,84288.0,0.18130385]
[1742634449787,0.17947607,84289.0,84288.0,0.18130385]
[1742634450086,0.00060001,84289.0,84288.0,0.18130385]
[1742634450285,0.17771388,84289.0,84288.0,0.18130385]
[1742634451390,0.17771388,84289.0,84288.0,0.29418385]
[1742634453287,0.29639838,84289.0,84288.0,0.29418385]
[1742634453491,0.17771388,84289.0,84288.0,0.29418385]
[1742634456486,0.29639838,84289.0,84288.0,0.29418385]
[1742634458989,0.17771388,84289.0,84288.0,0.29418385]
[1742634459186,0.29639838,84289.0,84288.0,0.29418385]
[1742634459987,0.17771388,84289.0,84288.0,0.29418385]
[1742634461481,0.29639838,84289.0,84288.0,0.29418385]
[1742634461686,0.17771388,84289.0,84288.0,0.29418385]
[1742634462097,0.29639838,84289.0,84288.0,0.29418385]
[1742634463988,0.35849838,84289.0,84288.0,0.29418385]
[1742634464289,0.32829838,84289.0,84288.0,0.29418385]
[1742634465489,0.29639838,84289.0,84288.0,0.29418385]
[1742634467099,0.29639838,84289.0,84288.0,0.17549795]
[1742634467402,0.29639838,84289.0,84288.0,0.29354385]
[1742634467601,0.29639838,84289.0,84288.0,0.29418385]
[1742634468903,0.17771388,84289.0,84288.0,0.65498385]
[1742634470597,0.29639838,84289.0,84288.0,0.65498385]
[1742634476703,0.32689838,84289.0,84288.0,0.65498385]
[1742634476898,0.29639838,84289.0,84288.0,0.65498385]
[1742634477396,0.17771388,84289.0,84288.0,0.65498385]
[1742634480297,0.29639838,84289.0,84288.0,0.65498385]
[1742634480501,0.17771388,84289.0,84288.0,0.65498385]
[1742634481207,0.17771388,84289.0,84288.0,0.92498385]
[1742634483811,0.17771388,84289.0,84288.0,0.56418385]
[1742634484002,0.17771388,84289.0,84288.0,0.92498385]
[1742634484710,0.17711387,84289.0,84288.0,0.92498385]
[1742634485008,0.17771388,84289.0,84288.0,0.92498385]
[1742634486399,0.17711387,84289.0,84288.0,0.92498385]
[1742634487202,0.17771388,84289.0,84288.0,0.92498385]
[1742634487508,0.02357363,84313.0,84310.0,0.1186549]
[1742634487703,0.00607913,84311.0,84310.0,0.1194949]
[1742634487905,0.30206397,84311.0,84310.0,0.1194949]
[1742634488607,0.30206397,84311.0,84310.0,0.1827949]
[1742634488806,0.30206397,84311.0,84310.0,0.19438453]
[1742634489204,0.30206397,84311.0,84310.0,0.07572963]
[1742634489412,0.30206397,84311.0,84310.0,0.06414]
[1742634489909,0.30206397,84311.0,84310.0,0.42494]
[1742634490507,0.30206397,84311.0,84310.0,0.43691806]
[1742634491304,0.18341047,84311.0,84310.0,0.55557296]
[1742634491504,0.18273047,84311.0,84310.0,0.55557296]
[1742634491801,0.18357047,84311.0,84310.0,0.55557296]
[1742634492001,0.18273047,84311.0,84310.0,0.55557296]
[1742634492202,0.18273047,84311.0,84310.0,0.57058779]
[1742634492407,0.18349047,84311.0,84310.0,0.57058779]
[1742634493613,0.18349047,84311.0,84310.0,0.85058779]
[1742634494201,0.18273047,84311.0,84310.0,0.85058779]
[1742634494402,0.18357047,84311.0,84310.0,0.85058779]
[1742634494799,0.18273047,84311.0,84310.0,0.85058779]
[1742634495012,0.18353047,84311.0,84310.0,0.85058779]
[1742634495513,0.18273047,84311.0,84310.0,0.85058779]
[1742634495814,0.00539913,84311.0,84310.0,0.85058779]
[1742634496199,0.00539913,84311.0,84310.0,0.87537725]
[1742634496804,1e-08,84313.0,84312.0,0.1186521]
[1742634497103,0.0015415,84314.0,84313.0,0.1186507]
[1742634497312,0.0015415,84314.0,84313.0,0.39442553]
[1742634497514,0.0015415,84314.0,84313.0,0.48782553]
[1742634500804,0.0015415,84314.0,84313.0,0.4728107]
[1742634509022,0.0015415,84314.0,84313.0,0.48825958]
[1742634510721,0.0015415,84314.0,84313.0,0.51322882]
[1742634511425,0.00195818,84315.0,84314.0,0.1186493]
[1742634511622,0.00270385,84317.0,84315.0,0.1186479]
[1742634511929,0.00270385,84317.0,84315.0,0.3994479]
[1742634512223,0.00270385,84317.0,84315.0,0.50436602]
[1742634513717,0.00270385,84317.0,84315.0,0.47939678]
[1742634516714,0.00270385,84317.0,84315.0,0.4639479]
[1742634518223,0.00270385,84317.0,84315.0,0.47941127]
[1742634519514,0.00270385,84317.0,84315.0,1.20101127]
[1742634523018,0.00270385,84317.0,84315.0,1.1855479]
[1742634523719,0.03440385,84317.0,84315.0,1.1855479]
[1742634524331,0.00351355,84319.0,84316.0,0.0593232]
[1742634524521,0.00351355,84319.0,84318.0,0.1186437]
[1742634524816,0.00351355,84319.0,84318.0,0.3694037]
[1742634525020,0.00351355,84319.0,84318.0,0.4346037]
[1742634528035,0.00351355,84319.0,84318.0,0.44346331]
[1742634528235,0.00351355,84319.0,84318.0,0.56182331]
[1742634528933,0.00785523,84331.0,84318.0,0.45844999]
[1742634529127,0.04095523,84331.0,84329.0,0.1186282]
[1742634529437,0.04095523,84331.0,84329.0,0.4878282]
[1742634529634,0.25134115,84330.0,84329.0,0.4878282]
[1742634530027,0.00016,84344.0,84336.0,0.0593089]
[1742634530333,0.01372212,84345.0,84344.0,0.1186071]
[1742634530334,0.03196,84345.0,84344.0,0.1186071]
[1742634530529,0.03272,84345.0,84344.0,0.4776871]
[1742634530732,0.21004327,84345.0,84344.0,0.48940286]
[1742634530931,0.21080327,84345.0,84344.0,0.48940286]
[1742634531126,0.21080327,84345.0,84344.0,0.4776871]
[1742634531335,0.39420897,84345.0,84344.0,0.4776871]
[1742634531521,0.27560327,84345.0,84344.0,0.4776871]
[1742634532231,0.39420897,84345.0,84344.0,0.48959947]
[1742634532535,0.39420897,84345.0,84344.0,0.4776871]
[1742634536135,0.39420897,84345.0,84344.0,0.3593671]
[1742634536433,0.27560327,84345.0,84344.0,0.3593671]
[1742634536939,0.39420897,84345.0,84344.0,0.3593671]
[1742634538841,0.24380327,84345.0,84344.0,0.1193671]
[1742634539035,0.27630327,84345.0,84344.0,0.1836671]
[1742634544434,0.39490897,84345.0,84344.0,0.1836671]
[1742634545034,0.27630327,84345.0,84344.0,0.1836671]
[1742634545231,0.39490897,84345.0,84344.0,0.1836671]
[1742634546142,0.27630327,84345.0,84344.0,0.1836671]
[1742634547347,0.27630327,84345.0,84344.0,0.4236671]
[1742634548439,0.39490897,84345.0,84344.0,0.4236671]
[1742634557145,0.51347034,84345.0,84344.0,0.3593671]
[1742634557457,0.51347034,84345.0,84344.0,0.00076]
[1742634558047,0.1186197,84336.0,84335.0,0.1186192]
[1742634558256,0.1186197,84336.0,84335.0,0.1193792]
[1742634558451,0.21651971,84336.0,84335.0,0.1193792]
[1742634558753,0.33508108,84336.0,84335.0,0.00076]
[1742634558944,0.1186226,84333.0,84332.0,0.00017795]
[1742634559149,0.11922261,84333.0,84332.0,0.00077795]
[1742634559356,0.29803481,84333.0,84332.0,0.00017795]
[1742634559547,0.41660883,84333.0,84332.0,0.00077795]
[1742634559743,0.48200883,84333.0,84332.0,0.00077795]
[1742634559944,0.48200883,84333.0,84332.0,0.00017795]
[1742634564060,0.1186394,84322.0,84321.0,0.1186381]
[1742634564258,0.1186394,84322.0,84321.0,0.1500381]
[1742634564662,0.11923941,84322.0,84321.0,0.1500381]
[1742634565452,0.14993941,84322.0,84321.0,0.1500381]
[1742634566254,0.14993941,84322.0,84321.0,0.16214542]
[1742634572353,0.11923941,84322.0,84321.0,0.40214542]
[1742634573361,0.00060001,84322.0,84321.0,0.40214542]
[1742634573559,0.592772,84382.0,84321.0,0.40214542]
[1742634573560,0.0593172,84325.0,84324.0,0.1186338]
[1742634573760,0.0593172,84325.0,84324.0,0.1192338]
[1742634573961,0.23764336,84325.0,84324.0,0.1192338]
[1742634574158,0.35627716,84325.0,84324.0,0.2706507]
[1742634578267,0.35627716,84325.0,84324.0,0.2706507]
[1742634579175,0.23764336,84325.0,84324.0,0.2706507]
[1742634584370,0.23764336,84325.0,84324.0,0.5106507]
[1742634585777,0.23764336,84325.0,84324.0,0.6278907]
[1742634587072,0.0593039,84344.0,84324.0,0.44994]
[1742634587283,0.1780077,84337.0,84336.0,0.1186183]
[1742634587469,0.1787677,84337.0,84336.0,0.3793783]
[1742634587671,0.2105677,84337.0,84336.0,0.3793783]
[1742634587869,0.32915719,84337.0,84336.0,0.4436783]
[1742634588070,0.21053889,84337.0,84336.0,0.4436783]
[1742634588278,0.11942949,84337.0,84336.0,0.4436783]
[1742634588471,0.091107,84340.0,84336.0,0.4436783]
[1742634588681,0.2104811,84340.0,84339.0,0.1186141]
[1742634588887,0.2104811,84340.0,84339.0,0.1193741]
[1742634589075,0.21050675,84340.0,84339.0,0.3893741]
[1742634589389,0.1511727,84340.0,84339.0,0.5064541]
[1742634589589,0.30044321,84340.0,84339.0,0.5708541]
[1742634589881,0.00076,84340.0,84339.0,0.3008541]
[1742634590074,0.13186983,84346.0,84345.0,0.1186057]
[1742634590274,0.16512984,84346.0,84345.0,0.7603657]
[1742634590475,0.16512984,84346.0,84345.0,0.8574657]
[1742634593673,0.16512984,84346.0,84345.0,0.8261657]
[1742634593875,0.16512984,84346.0,84345.0,0.83815837]
[1742634600988,0.16512984,84346.0,84345.0,0.52555837]
[1742634601190,0.16512984,84346.0,84345.0,0.55815837]
[1742634607505,0.04652454,84346.0,84345.0,0.55815837]
[1742634607705,0.16416883,84346.0,84345.0,0.55815837]
[1742634607914,0.16512884,84346.0,84345.0,0.55815837]
[1742634608514,0.04652454,84346.0,84345.0,0.55815837]
[1742634608816,0.19716883,84346.0,84345.0,0.55815837]
[1742634609004,0.19812884,84346.0,84345.0,0.55815837]
[1742634609612,0.19812884,84346.0,84345.0,0.83815837]
[1742634609998,0.07952454,84346.0,84345.0,0.83815837]
[1742634610210,0.07856453,84346.0,84345.0,0.83815837]
[1742634610718,0.19812884,84346.0,84345.0,0.83815837]
[1742634611212,0.07952454,84346.0,84345.0,0.83815837]
[1742634611614,0.19812884,84346.0,84345.0,0.83815837]
[1742634611805,0.19716883,84346.0,84345.0,0.83815837]
[1742634612005,0.07856453,84346.0,84345.0,0.83815837]
[1742634613005,0.19716883,84346.0,84345.0,0.83815837]
[1742634613204,0.19820884,84346.0,84345.0,0.83815837]
[1742634614004,0.07960454,84346.0,84345.0,0.83815837]
[1742634614206,0.19716883,84346.0,84345.0,0.83815837]
[1742634614407,0.19812884,84346.0,84345.0,0.83815837]
[1742634614914,0.19812884,84346.0,84345.0,0.47735837]
[1742634615215,0.19812884,84346.0,84345.0,0.83815837]
[1742634615414,0.19716883,84346.0,84345.0,0.83815837]
[1742634618510,0.19716883,84346.0,84345.0,0.87075837]
[1742634619414,0.07856453,84346.0,84345.0,0.87075837]
[1742634620216,0.19716883,84346.0,84345.0,0.87075837]
[1742634621822,0.07856453,84346.0,84345.0,0.87075837]
[1742634624920,0.07856453,84346.0,84345.0,0.50995837]
[1742634625121,0.07856453,84346.0,84345.0,0.87075837]
[1742634625122,0.07952454,84346.0,84345.0,0.87075837]
[1742634625421,0.07856453,84346.0,84345.0,0.87075837]
[1742634628017,0.07856453,84346.0,84345.0,0.50995837]
[1742634628223,0.07952454,84346.0,84345.0,0.87075837]
[1742634628430,0.07856453,84346.0,84345.0,0.87075837]
[1742634642128,0.07856453,84346.0,84345.0,0.50995837]
[1742634642335,0.07952454,84346.0,84345.0,0.87075837]
[1742634642525,0.07856453,84346.0,84345.0,0.87075837]
[1742634643928,0.19716883,84346.0,84345.0,0.83815837]
[1742634644228,0.10976453,84346.0,84345.0,0.88831837]
[1742634644428,0.22836883,84346.0,84345.0,0.88831837]
[1742634644735,0.22836883,84346.0,84345.0,1.10132132]
[1742634644943,0.22836883,84346.0,84345.0,1.16722132]
[1742634647340,0.22836883,84346.0,84345.0,0.95421837]
[1742634647539,0.22940884,84346.0,84345.0,0.95421837]
[1742634650131,0.19820884,84346.0,84345.0,0.95421837]
[1742634650337,0.19716883,84346.0,84345.0,0.98601837]
[1742634650540,0.19776884,84346.0,84345.0,0.98601837]
[1742634651339,0.07916454,84346.0,84345.0,0.98601837]
[1742634651523,0.19716883,84346.0,84345.0,0.98601837]
[1742634651934,0.07856453,84346.0,84345.0,0.98601837]
[1742634654630,0.07856453,84346.0,84345.0,0.62521837]
[1742634655032,0.07856453,84346.0,84345.0,0.98601837]
[1742634663142,0.01326453,84346.0,84345.0,0.98601837]
[1742634665254,0.01326453,84346.0,84345.0,1.00091002]
[1742634665836,0.04496453,84346.0,84345.0,1.00091002]
[1742634666241,0.04496453,84346.0,84345.0,0.98601837]
[1742634666441,0.01326453,84346.0,84345.0,0.98601837]
[1742634669952,0.01326453,84346.0,84345.0,1.34681837]
[1742634671954,0.01326453,84346.0,84345.0,1.34709837]
[1742634674354,0.04576453,84346.0,84345.0,1.34709837]
[1742634675346,0.07726453,84346.0,84345.0,1.34709837]
[1742634676857,0.07726453,84346.0,84345.0,1.36214389]
[1742634677058,0.07726453,84346.0,84345.0,1.36214398]
[1742634677894,0.07726453,84346.0,84345.0,1.34709837]
[1742634679364,0.07726453,84346.0,84345.0,0.62549837]
[1742634679561,0.07726453,84346.0,84345.0,1.34709837]
[1742634682155,0.04576453,84346.0,84345.0,1.34709837]
[1742634682545,0.07846453,84346.0,84345.0,1.34709837]
[1742634682951,0.07846453,84346.0,84345.0,1.3620846]
[1742634684158,0.07846453,84346.0,84345.0,1.34777837]